bitfinex/quotes_SOLUSD_20250817
["timestamp","ask_amount","ask_price","bid_price","bid_amount"]
[1755448172193,15.10621557,194.21,194.2,2.49604545]
[1755448172497,24.8281225,194.21,194.18,0.2]
[1755448172790,24.8281225,194.19,194.18,4.09913934]
[1755448173572,24.8281225,194.19,194.18,9.24900029]
[1755448173779,15.10621557,194.19,194.18,9.57900029]
[1755448173979,24.8281225,194.19,194.18,9.57900029]
[1755448174170,24.8281225,194.19,194.18,9.24900029]
[1755448174363,15.10621557,194.19,194.18,9.24900029]
[1755448174773,24.8281225,194.19,194.18,9.24900029]
[1755448174981,15.10621557,194.19,194.18,9.24900029]
[1755448175282,24.8281225,194.19,194.18,9.24900029]
[1755448176292,24.8281225,194.19,194.18,0.2]
[1755448176468,24.8281225,194.19,194.18,4.09913934]
[1755448177291,15.10621557,194.19,194.18,4.09913934]
[1755448177469,25.5081225,194.19,194.18,4.09913934]
[1755448178103,24.8281225,194.19,194.18,4.09913934]
[1755448179180,25.5081225,194.19,194.18,4.09913934]
[1755448179381,15.78621557,194.19,194.18,4.09913934]
[1755448179699,25.5081225,194.19,194.18,4.09913934]
[1755448180508,24.8281225,194.19,194.18,4.09913934]
[1755448180700,61.3281225,194.19,194.18,4.09913934]
[1755448181195,24.8281225,194.19,194.18,4.09913934]
[1755448182583,25.5081225,194.19,194.18,4.09913934]
[1755448182979,24.8281225,194.19,194.18,4.09913934]
[1755448183172,25.5081225,194.19,194.18,4.09913934]
[1755448183372,62.0081225,194.19,194.18,4.09913934]
[1755448183994,61.3281225,194.19,194.18,4.09913934]
[1755448184415,61.3281225,194.19,194.18,9.24900029]
[1755448186217,61.9681225,194.19,194.18,0.2]
[1755448186390,61.9681225,194.19,194.18,4.09913934]
[1755448188031,61.9681225,194.19,194.18,9.24900029]
[1755448188215,61.3081225,194.19,194.18,9.24900029]
[1755448189211,61.9681225,194.19,194.18,9.24900029]
[1755448189828,25.4881225,194.19,194.18,9.24900029]
[1755448190119,61.9681225,194.19,194.18,9.24900029]
[1755448190634,61.9681225,194.19,194.18,4.09913934]
[1755448191924,61.9681225,194.19,194.18,9.24900029]
[1755448194904,61.3081225,194.19,194.18,9.24900029]
[1755448195530,51.58621557,194.19,194.18,9.24900029]
[1755448195902,61.3081225,194.19,194.18,9.24900029]
[1755448196422,24.8281225,194.19,194.18,9.24900029]
[1755448196719,25.4881225,194.19,194.18,9.24900029]
[1755448197814,25.4881225,194.19,194.18,4.09913934]
[1755448198696,28.9257129,194.19,194.18,4.09913934]
[1755448199200,28.9257129,194.19,194.18,0.2]
[1755448199421,41.793697,194.19,194.18,0.2]
[1755448199636,41.793697,194.19,194.16,0.03]
[1755448199637,50.8281225,194.17,194.16,0.03]
[1755448199832,24.8281225,194.15,194.14,0.03]
[1755448200036,72.46382974,194.15,194.14,0.03]
[1755448200319,73.12382974,194.15,194.14,0.03]
[1755448200821,74.3575394,194.15,194.14,0.03]
[1755448201029,78.25667874,194.15,194.14,0.03]
[1755448201238,83.40733544,194.15,194.14,0.03]
[1755448201620,74.3575394,194.15,194.14,0.03]
[1755448202543,79.5081961,194.15,194.14,0.03]
[1755448203517,74.3575394,194.15,194.14,0.03]
[1755448204330,79.5081961,194.15,194.14,0.03]
[1755448204528,83.40733544,194.15,194.14,0.03]
[1755448204948,24.8281225,194.13,194.12,0.03]
[1755448205257,77.59501708,194.13,194.12,0.03]
[1755448205454,78.25501708,194.13,194.12,0.03]
[1755448205932,74.35587774,194.13,194.12,0.03]
[1755448206417,74.35587774,194.13,193.89,0.27809307]
[1755448206418,15.10621557,194.04,193.89,0.27809307]
[1755448206620,9.72190693,193.96,193.9,0.59]
[1755448206813,9.72190693,193.95,193.91,15.485469]
[1755448207054,9.72190693,193.96,193.92,0.59]
[1755448207259,9.72190693,193.95,193.92,0.59]
[1755448207754,9.72190693,193.94,193.91,5.1570095]
[1755448207931,9.72190693,193.94,193.93,3.89913934]
[1755448208327,9.72190693,193.93,193.88,0.59]
[1755448208555,9.72190693,193.94,193.88,26.59]
[1755448208731,9.72190693,193.93,193.88,26.59]
[1755448208926,9.72190693,193.93,193.92,3.89913934]
[1755448209130,15.10621557,193.92,193.87,5.74809563]
[1755448209448,9.72190693,193.9,193.87,0.59]
[1755448209649,9.72190693,193.9,193.89,3.89913934]
[1755448209966,9.72190693,193.95,193.89,4.48913934]
[1755448210122,9.72190693,193.96,193.94,3.89913934]
[1755448210458,24.8281225,193.96,193.95,3.89913934]
[1755448210659,25.4881225,193.96,193.95,3.89913934]
[1755448210843,9.72190693,193.95,193.89,26.0]
[1755448211052,9.72190693,193.95,193.92,4.48913934]
[1755448211351,24.8281225,193.97,193.94,5.15623388]
[1755448211554,9.72190693,193.99,193.95,0.59]
[1755448211940,9.72190693,193.98,193.94,5.15623388]
[1755448212251,24.8281225,193.95,193.93,5.15648965]
[1755448212553,24.8281225,193.95,193.94,3.89913934]
[1755448212730,9.72190693,193.99,193.94,4.48913934]
[1755448212935,24.8281225,194.02,193.98,3.89913934]
[1755448213159,24.8281225,194.02,194.01,3.89913934]
[1755448213369,9.72190693,193.98,193.97,5.1554364]
[1755448213573,9.72190693,194.01,193.97,9.05457574]
[1755448213869,24.8281225,194.01,194.0,3.89913934]
[1755448214173,9.72190693,194.02,194.0,3.89913934]
[1755448214351,9.72190693,194.03,194.01,3.89913934]
[1755448214540,9.72190693,194.06,194.02,4.48913934]
[1755448214749,9.72190693,194.04,194.02,0.59]
[1755448215137,9.72190693,194.01,193.97,5.7454364]
[1755448215452,9.72190693,194.0,193.97,5.1554364]
[1755448215952,9.72190693,194.0,193.99,3.89913934]
[1755448216727,9.72190693,194.04,193.99,4.48913934]
[1755448217033,9.72190693,194.04,193.97,5.1854364]
[1755448217034,9.72190693,194.01,193.97,5.1854364]
[1755448217332,9.72190693,194.01,193.98,0.59]
[1755448217840,15.10621557,194.02,193.97,44.07402741]
[1755448218059,9.72190693,194.02,193.99,0.59]
[1755448218453,9.72190693,194.03,194.01,3.89913934]
[1755448218652,9.72190693,194.03,194.02,3.89913934]
[1755448218847,9.72190693,194.01,193.97,5.1854364]
[1755448219054,9.72190693,194.0,193.97,5.7754364]
[1755448219363,9.72190693,194.01,193.98,0.59]
[1755448219560,9.72190693,194.01,193.99,5.18490489]
[1755448220134,24.8281225,194.01,194.0,3.89913934]
[1755448221378,25.4981225,194.01,194.0,3.89913934]
[1755448221550,9.72190693,194.0,193.99,0.03]
[1755448221861,25.4981225,194.0,193.99,3.92913934]
[1755448222070,25.4981225,194.0,193.99,0.03]
[1755448222384,9.72190693,193.98,193.97,0.03]
[1755448222544,24.8281225,193.98,193.97,0.03]
[1755448222736,25.4981225,193.98,193.97,0.03]
[1755448223074,9.72190693,193.88,193.87,15.490667]
[1755448223367,9.72190693,193.88,193.78,0.40023935]
[1755448223368,9.72190693,193.84,193.8,5.15995872]
[1755448223532,9.72190693,193.84,193.8,5.80995872]
[1755448223735,9.72190693,193.84,193.8,5.15995872]
[1755448223971,15.10621557,193.9,193.8,5.15995872]
[1755448223972,10.39190693,193.86,193.83,3.89913934]
[1755448224134,9.72190693,193.84,193.8,9.70909806]
[1755448224347,9.72190693,193.84,193.83,3.89913934]
[1755448224553,9.72190693,193.84,193.8,9.05909806]
[1755448224798,9.72190693,193.84,193.83,3.89913934]
[1755448225090,9.72190693,193.84,193.8,5.15995872]
[1755448225297,9.72190693,193.84,193.8,9.05909806]
[1755448225615,9.72190693,193.83,193.79,0.1]
[1755448225751,9.72190693,193.83,193.82,3.89913934]
[1755448226154,9.72190693,193.85,193.8,5.15985249]
[1755448226403,9.72190693,193.83,193.8,5.15985249]
[1755448226682,9.72190693,193.85,193.82,3.89913934]
[1755448226873,9.72190693,193.85,193.81,0.65]
[1755448226874,9.72190693,193.85,193.84,3.89913934]
[1755448227558,9.72190693,193.87,193.84,9.05803327]
[1755448227778,9.72190693,193.87,193.86,3.89913934]
[1755448228351,9.72190693,193.92,193.86,4.54913934]
[1755448228587,9.72190693,193.93,193.87,26.65]
[1755448228768,9.72190693,193.91,193.87,26.0]
[1755448228974,9.72190693,193.91,193.9,3.89913934]
[1755448229291,9.72190693,193.92,193.87,0.65]
[1755448229515,3.75982483,193.91,193.84,83.08612876]
[1755448229680,9.72190693,193.89,193.84,83.08612876]
[1755448230094,9.72190693,193.91,193.87,26.0]
[1755448230271,9.72190693,193.92,193.88,0.65]
[1755448230475,13.48213808,193.91,193.85,0.65]
[1755448230792,9.72190693,193.9,193.84,18.05612876]
[1755448230998,9.72190693,193.89,193.85,38.38]
[1755448231195,10.39190693,193.89,193.85,38.38]
[1755448231400,9.72190693,193.88,193.85,38.38]
[1755448231584,9.72190693,193.88,193.84,31.15889393]
[1755448231787,9.72190693,193.87,193.84,5.15889393]
[1755448231984,9.72190693,193.89,193.86,3.89913934]
[1755448232179,9.72190693,193.89,193.88,3.89913934]
[1755448232381,3.75930219,193.89,193.88,3.89913934]
[1755448232895,9.72190693,193.92,193.88,4.54913934]
[1755448233121,3.75916303,193.91,193.88,38.32]
[1755448233293,9.72190693,193.94,193.9,3.89913934]
[1755448233490,13.48210096,193.93,193.88,38.97]
[1755448233696,13.48210096,193.92,193.89,5.15756356]
[1755448234006,9.72190693,193.91,193.89,5.15756356]
[1755448234177,3.76054387,193.9,193.89,5.15756356]
[1755448234381,14.1524508,193.9,193.88,5.15779411]
[1755448234586,3.76049639,193.89,193.88,5.15779411]
[1755448235082,3.76049639,193.89,193.84,26.0]
[1755448235083,4.43049639,193.89,193.85,5.1586278]
[1755448235283,4.43049639,193.88,193.85,5.1586278]
[1755448235520,9.72190693,193.86,193.83,0.03]
[1755448235692,3.76049639,193.85,193.83,0.03]
[1755448235898,24.8281225,193.87,193.86,0.03]
[1755448236101,13.48263722,193.87,193.86,0.03]
[1755448236292,14.15263722,193.87,193.86,0.03]
[1755448236807,24.8281225,193.84,193.83,0.03]
[1755448237010,24.8281225,193.84,193.68,2.97231299]
[1755448237011,9.72190693,193.76,193.73,5.16182315]
[1755448237328,10.39190693,193.75,193.73,5.16182315]
[1755448237520,0.67,193.75,193.74,3.89913934]
[1755448237726,0.67,193.75,193.71,5.16226361]
[1755448237727,10.39190693,193.75,193.71,5.16226361]
[1755448237916,10.39190693,193.75,193.71,45.32226361]
[1755448238293,9.72190693,193.77,193.74,6.09233329]
[1755448238522,3.76351248,193.76,193.72,0.65]
[1755448238724,9.72190693,193.78,193.75,6.09233329]
[1755448238948,13.48385312,193.77,193.71,58.87815385]
[1755448239239,9.72190693,193.75,193.66,0.65]
[1755448239524,9.72190693,193.71,193.66,0.65]
[1755448239822,9.72190693,193.73,193.67,18.7219781]
[1755448240120,3.76215874,193.72,193.68,0.65]
[1755448240431,9.72190693,193.75,193.69,41.03]
[1755448240595,3.76238719,193.74,193.69,40.38]
[1755448240925,9.72190693,193.76,193.72,26.0]
[1755448241236,3.76265002,193.75,193.73,0.65]
[1755448241400,10.39190693,193.83,193.74,78.56466658]
[1755448241728,10.39190693,193.83,193.77,18.06265158]
[1755448241913,9.72190693,193.84,193.77,18.06265158]
[1755448242102,9.72190693,193.84,193.78,0.65]
[1755448242300,9.72190693,193.81,193.77,5.16075759]
[1755448242507,10.39190693,193.8,193.77,5.16075759]
[1755448242736,10.39190693,193.79,193.77,5.16075759]
[1755448243326,9.43471703,193.86,193.77,18.71265158]
[1755448243327,10.39190693,193.84,193.77,18.71265158]
[1755448243624,3.39076384,193.83,193.79,5.16022498]
[1755448243928,3.39076384,193.83,193.82,6.09233329]
[1755448243929,10.39190693,193.83,193.82,6.09233329]
[1755448244109,13.78275253,193.83,193.82,6.09233329]
[1755448244305,13.11275253,193.83,193.82,6.09233329]
[1755448244624,13.11275253,193.83,193.79,5.16022498]
[1755448244924,28.91090597,193.82,193.77,5.16050797]
[1755448245221,9.72190693,193.79,193.77,5.16050797]
[1755448245392,9.72190693,193.81,193.78,6.09233329]
[1755448245593,3.39189529,193.8,193.77,5.16050797]
[1755448245805,15.79621557,193.84,193.77,5.16050797]
[1755448245806,9.72190693,193.83,193.77,18.77240196]
[1755448246121,9.72190693,193.83,193.77,17.77240196]
[1755448246601,9.72190693,193.85,193.82,6.09233329]
[1755448246930,9.72190693,193.86,193.84,6.09233329]
[1755448247143,15.10621557,193.88,193.85,6.09233329]
[1755448247144,9.72190693,193.88,193.85,6.09233329]
[1755448247301,3.39440748,193.87,193.82,0.71]
[1755448247624,3.39440748,193.86,193.82,0.71]
[1755448247834,9.72190693,193.9,193.83,5.86916008]
[1755448248168,13.1182942,193.89,193.83,18.7670603]
[1755448248299,3.39638727,193.88,193.83,18.7670603]
[1755448248506,3.39638727,193.87,193.84,0.71]
[1755448248843,9.72190693,193.89,193.86,6.09233329]
[1755448248998,9.72190693,193.89,193.84,0.71]
[1755448248999,3.39771158,193.88,193.84,0.71]
[1755448249332,3.39771158,193.87,193.84,0.71]
[1755448249513,9.72190693,193.89,193.84,0.71]
[1755448249700,3.39996433,193.88,193.84,0.71]
[1755448249899,4.27633718,193.93,193.83,18.0570603]
[1755448249900,14.68824411,193.94,193.85,59.00519731]
[1755448250100,9.72190693,193.93,193.85,59.00519731]
[1755448250302,0.69,193.94,193.92,6.09233329]
[1755448250521,0.69,193.94,193.9,6.09233329]
[1755448250522,9.72190693,193.96,193.93,6.09233329]
[1755448250741,9.72190693,193.96,193.95,6.09233329]
[1755448250939,10.41190693,193.96,193.95,6.09233329]
[1755448251225,0.69,193.96,193.95,6.09233329]
[1755448251443,9.72190693,193.98,193.95,6.09233329]
[1755448251607,9.72190693,193.98,193.97,6.09233329]
[1755448251807,0.75,193.99,193.98,5.15517063]
[1755448252029,0.06,193.99,193.98,11.24750392]
[1755448252199,0.06,194.01,193.98,11.95750392]
[1755448252403,9.78190693,194.01,193.98,5.15517063]
[1755448252830,9.78190693,194.01,194.0,6.09233329]
[1755448253308,10.47190693,194.01,194.0,6.09233329]
[1755448253503,10.47190693,194.01,193.95,5.15596803]
[1755448253710,9.78190693,193.99,193.98,6.09233329]
[1755448253906,9.78190693,193.99,193.95,5.15596803]
[1755448253907,10.47190693,193.99,193.95,5.15596803]
[1755448254213,9.78190693,193.99,193.98,6.09233329]
[1755448254611,24.8281225,193.98,193.95,6.09233329]
[1755448254811,9.72190693,193.96,193.95,6.09233329]
[1755448255014,10.41190693,193.96,193.95,6.09233329]
[1755448255210,10.41190693,193.96,193.91,26.0]
[1755448255413,10.41190693,193.95,193.94,6.09233329]
[1755448255831,10.41190693,193.95,193.9,26.0]
[1755448256029,10.41190693,193.95,193.94,6.09233329]
[1755448256528,9.72190693,193.94,193.93,6.09233329]
[1755448256832,9.72190693,193.93,193.92,6.09233329]
[1755448257135,10.41190693,193.93,193.92,6.09233329]
[1755448257618,9.72190693,193.93,193.9,5.1570584]
[1755448257815,9.72190693,193.93,193.92,6.09233329]
[1755448258239,9.72190693,193.94,193.92,11.24909896]
[1755448258415,9.72190693,193.93,193.92,5.15676567]
[1755448258620,9.72190693,193.93,193.92,11.24909896]
[1755448258822,9.72190693,193.93,193.92,5.15676567]
[1755448259013,9.72190693,193.93,193.92,11.24909896]
[1755448259214,9.72190693,193.95,193.92,11.24909896]
[1755448259470,9.72190693,193.96,193.94,6.09233329]
[1755448259747,10.41190693,193.95,193.92,5.15676567]
[1755448260043,10.41190693,193.94,193.92,5.15676567]
[1755448260251,10.41190693,193.94,193.9,5.15729757]
[1755448260611,9.72190693,193.95,193.9,18.05054151]
[1755448260807,9.72190693,193.95,193.94,6.09233329]
[1755448261642,10.41190693,193.97,193.94,6.09233329]
[1755448261842,9.72190693,193.97,193.96,6.09233329]
[1755448262145,0.75,193.99,193.96,6.09233329]
[1755448262146,0.06,193.99,193.96,6.09233329]
[1755448262315,0.06,193.99,193.98,11.24750392]
[1755448262725,0.06,193.99,193.98,10.74750392]
[1755448263727,0.06,193.99,193.98,11.45750392]
[1755448263928,0.06,194.0,193.98,37.45750392]
[1755448264124,0.06,194.02,193.99,46.64233329]
[1755448264322,0.69,194.08,194.01,6.09233329]
[1755448264516,0.69,194.08,194.07,6.09233329]
[1755448265056,9.72190693,194.12,194.04,6.09233329]
[1755448265216,9.41190693,194.08,194.01,26.0]
[1755448265416,9.41190693,194.08,194.01,13.59549652]
[1755448265642,9.41190693,194.07,194.05,6.09233329]
[1755448265823,9.41190693,194.06,194.02,5.15410782]
[1755448266151,9.41190693,194.04,194.03,6.09233329]
[1755448266650,9.41190693,194.02,193.97,39.76]
[1755448266814,9.41190693,194.02,194.01,6.09233329]
[1755448267023,9.41190693,194.01,194.0,6.09233329]
[1755448268244,9.41190693,194.01,194.0,11.24697246]
[1755448268438,10.10190693,194.01,194.0,6.09233329]
[1755448268823,9.41190693,194.01,194.0,6.09233329]
[1755448269023,9.41190693,194.02,194.0,11.24697246]
[1755448269338,9.41190693,194.02,194.01,6.09233329]
[1755448269949,9.41190693,194.01,193.98,5.15493211]
[1755448270244,10.10190693,194.01,193.98,5.15493211]
[1755448270419,9.41190693,194.0,193.98,0.03]
[1755448270619,9.41190693,193.99,193.98,0.03]
[1755448270920,25.2081225,193.99,193.98,0.03]
[1755448271446,25.2081225,193.99,193.98,6.12233329]
[1755448271959,9.41190693,194.0,193.98,6.12233329]
[1755448272247,9.41190693,193.99,193.98,0.03]
[1755448272453,9.41190693,193.99,193.98,6.12233329]
[1755448272959,0.06,194.01,193.98,11.98750392]
[1755448273248,0.06,194.01,194.0,6.09233329]
[1755448273421,0.06,194.03,194.0,6.09233329]
[1755448273751,0.06,194.03,194.02,11.24644111]
[1755448274722,0.06,194.03,194.02,11.92644111]
[1755448274937,9.41190693,194.09,194.02,30.90404395]
[1755448275246,10.10190693,194.09,194.08,6.09233329]
[1755448275750,9.41190693,194.09,194.08,6.09233329]
[1755448275935,10.10190693,194.09,194.08,6.09233329]
[1755448277652,9.41190693,194.1,194.08,6.09233329]
[1755448277854,9.41190693,194.11,194.1,5.15198351]
[1755448278257,9.41190693,194.11,194.1,11.2443168]
[1755448278941,9.41190693,194.12,194.1,11.2443168]
[1755448279467,9.41190693,194.11,194.1,11.2443168]
[1755448279654,9.41190693,194.12,194.1,11.2443168]
[1755448279855,9.41190693,194.12,194.11,6.09233329]
[1755448281460,9.41190693,194.12,194.09,5.15224895]
[1755448281766,9.41190693,194.09,194.06,5.15304544]
[1755448281985,9.41190693,194.1,194.08,6.09233329]
[1755448282173,9.41190693,194.09,194.06,5.15304544]
[1755448283078,9.41190693,194.09,194.06,5.83304544]
[1755448283247,9.41190693,194.11,194.08,6.09233329]
[1755448283447,9.41190693,194.11,194.1,6.09233329]
[1755448283667,9.41190693,194.12,194.1,6.09233329]
[1755448283985,10.10190693,194.11,194.1,5.15198351]
[1755448284152,9.41190693,194.11,194.1,11.2443168]
[1755448284946,9.41190693,194.1,194.09,5.15219814]
[1755448285142,9.41190693,194.1,194.09,11.24453143]
[1755448285570,10.10190693,194.1,194.09,6.09233329]
[1755448286101,9.30887257,194.06,194.0,12.88633697]
[1755448286247,9.30887257,194.05,194.04,6.09233329]
[1755448286448,9.30887257,194.04,194.01,5.15437348]
[1755448286670,9.99887257,194.04,194.03,6.09233329]
[1755448286972,9.30887257,194.04,194.03,6.09233329]
[1755448287973,9.30887257,194.05,194.03,11.24617547]
[1755448288183,9.30887257,194.04,194.03,5.15384218]
[1755448288553,9.30887257,194.05,194.03,5.15384218]
[1755448288850,9.30887257,194.04,194.03,5.15384218]
[1755448289159,9.30887257,194.07,194.03,5.83384218]
[1755448289513,9.30887257,194.07,194.06,6.09233329]
[1755448289677,9.30887257,194.07,194.04,0.68]
[1755448289844,9.30887257,194.05,194.02,5.15410782]
[1755448290248,9.30887257,194.05,194.02,5.83410782]
[1755448291178,9.30887257,194.05,194.02,5.15410782]
[1755448291346,9.30887257,194.05,194.04,6.09233329]
[1755448291972,9.30887257,194.05,194.04,11.24590987]
[1755448294587,9.99887257,194.05,194.04,5.15357658]
[1755448294790,9.99887257,194.05,194.04,11.24590987]
[1755448295399,9.30887257,194.05,194.04,11.24590987]
[1755448295578,9.99887257,194.05,194.01,5.15437348]
[1755448295879,9.30887257,194.03,194.01,5.15437348]
[1755448296059,0.69,194.03,194.02,6.09233329]
[1755448296260,9.30887257,194.03,194.02,6.09233329]
[1755448297558,9.30887257,194.05,194.03,5.15384218]
[1755448297780,9.30887257,194.05,194.04,6.09233329]
[1755448297969,9.30887257,194.05,194.03,5.15384218]
[1755448298173,9.30887257,194.05,194.04,6.09233329]
[1755448299073,9.99887257,194.05,194.03,5.15384218]
[1755448299299,9.99887257,194.05,194.04,6.09233329]
[1755448299470,9.30887257,194.04,194.03,11.24617547]
[1755448299659,9.99887257,194.04,194.03,11.24617547]
[1755448300993,9.30887257,194.04,194.03,11.24617547]
[1755448302096,9.30887257,194.05,194.03,11.24617547]
[1755448302297,9.30887257,194.05,194.04,6.09233329]
[1755448303288,9.99887257,194.05,194.04,6.09233329]
[1755448303495,9.30887257,194.03,194.01,5.15437348]
[1755448304003,9.30887257,194.01,194.0,6.12233329]
[1755448304296,9.99887257,194.01,194.0,6.12233329]
[1755448304591,25.10508814,194.01,194.0,0.03]
[1755448305010,31.19742143,194.01,194.0,0.03]
[1755448305316,36.35179491,194.01,194.0,0.03]
[1755448307784,43.59333553,194.01,194.0,0.03]
[1755448308690,25.10508814,194.01,194.0,0.03]
[1755448308881,63.90508814,194.01,194.0,0.03]
[1755448310474,24.41508814,194.01,194.0,0.03]
[1755448310676,9.30887257,194.01,194.0,11.96697246]
[1755448311489,9.30887257,194.01,194.0,5.18463917]
[1755448311802,9.30887257,194.01,194.0,11.27697246]
[1755448312204,10.02887257,194.01,194.0,0.03]
[1755448312390,31.22742143,194.01,194.0,0.03]
[1755448312594,36.38179491,194.01,194.0,0.03]
[1755448312801,31.22742143,194.01,194.0,0.03]
[1755448313097,25.13508814,194.01,194.0,0.03]
[1755448313983,31.22742143,194.01,194.0,0.03]
[1755448314396,25.13508814,194.01,194.0,0.03]
[1755448314771,63.83508814,194.01,194.0,0.03]
[1755448315508,69.92742143,194.01,194.0,0.03]
[1755448315910,63.83508814,194.01,194.0,0.03]
[1755448316612,24.41508814,194.01,194.0,0.03]
[1755448316999,63.09508814,194.01,194.0,6.12233329]
[1755448317195,63.81508814,194.01,194.0,0.03]
[1755448318710,63.09508814,194.01,194.0,0.03]
[1755448319723,63.81508814,194.01,194.0,0.03]
[1755448320110,63.09508814,194.01,194.0,0.03]
[1755448320639,63.81508814,194.01,194.0,0.03]
[1755448320789,63.09508814,194.01,194.0,0.03]
[1755448321420,9.30887257,194.01,194.0,6.81233329]
[1755448322315,38.58,194.03,194.0,9.78029126]
[1755448322316,9.30887257,194.03,194.0,9.78029126]
[1755448322623,9.30887257,194.05,194.02,3.90565209]
[1755448322926,0.06,194.06,194.04,7.81130418]
[1755448323089,0.06,194.06,194.05,29.90565209]
[1755448323286,0.06,194.06,194.05,4.59565209]
[1755448323489,0.06,194.08,194.07,3.90565209]
[1755448323913,0.06,194.08,194.07,4.59565209]
[1755448324308,0.06,194.08,194.07,11.91304577]
[1755448324919,1e-08,194.08,194.07,11.91304577]
[1755448325425,0.06,194.1,194.07,11.91304577]
[1755448325637,0.06,194.1,194.09,6.07026585]
[1755448326114,0.06,194.1,194.07,5.15277992]
[1755448326115,9.36887257,194.1,194.07,5.15277992]
[1755448326321,9.36887257,194.1,194.09,6.07026585]
[1755448327304,9.30887257,194.08,194.06,6.07026585]
[1755448327522,9.30887257,194.06,194.05,6.07026585]
[1755448328006,9.30887257,194.06,194.05,11.22357685]
[1755448329519,9.30887257,194.06,194.05,11.91357685]
[1755448329836,9.30887257,194.09,194.05,11.91357685]
[1755448330037,9.36887257,194.1,194.08,6.07026585]
[1755448330205,0.06,194.1,194.09,6.76026585]
[1755448330522,0.06,194.1,194.09,11.9125148]
[1755448330694,0.06,194.12,194.09,11.9125148]
[1755448330905,0.06,194.12,194.11,6.07026585]
[1755448331331,0.06,194.12,194.11,6.76026585]
[1755448331534,0.06,194.16,194.11,6.76026585]
[1755448331695,0.06,194.16,194.15,6.07026585]
[1755448331901,9.36887257,194.16,194.15,6.07026585]
[1755448332418,0.06,194.16,194.15,11.22092255]
[1755448332610,9.36887257,194.16,194.15,11.22092255]
[1755448332820,9.36887257,194.16,194.15,6.07026585]
[1755448333033,10.08887257,194.16,194.15,6.07026585]
[1755448333347,9.36887257,194.16,194.15,6.07026585]
[1755448333637,9.36887257,194.16,194.15,11.22092255]
[1755448333844,0.06,194.16,194.15,5.8406567]
[1755448334010,9.36887257,194.16,194.15,11.22092255]
[1755448334934,9.36887257,194.16,194.15,6.07026585]
[1755448338113,9.36887257,194.16,194.15,5.1506567]
[1755448338315,9.36887257,194.16,194.15,6.07026585]
[1755448338815,9.30887257,194.13,194.08,38.88103113]
[1755448339026,9.30887257,194.12,194.1,6.07026585]
[1755448339228,9.30887257,194.12,194.11,6.75026585]
[1755448339741,9.30887257,194.12,194.11,6.07026585]
[1755448339916,9.30887257,194.1,194.09,5.83224895]
[1755448340116,9.30887257,194.11,194.09,5.83224895]
[1755448340351,9.30887257,194.1,194.09,5.15224895]
[1755448340528,9.30887257,194.1,194.08,5.18244918]
[1755448340868,9.30887257,194.09,194.08,0.03]
[1755448341457,9.30887257,194.09,194.08,11.93278027]
[1755448341640,9.30887257,194.09,194.08,6.10026585]
[1755448342259,9.30887257,194.09,194.08,0.03]
[1755448342469,10.00887257,194.09,194.08,0.03]
[1755448342670,25.11508814,194.09,194.08,0.03]
[1755448343030,24.41508814,194.09,194.08,0.03]
[1755448344576,24.41508814,194.09,194.08,6.10026585]
[1755448344859,24.41508814,194.09,194.08,0.03]
[1755448345045,24.41508814,194.09,194.08,6.10026585]
[1755448345649,24.41508814,194.09,194.08,11.25278027]
[1755448346063,9.30887257,194.09,194.08,11.93278027]
[1755448346239,9.30887257,194.09,194.08,11.25278027]
[1755448346437,9.30887257,194.09,194.08,0.03]
[1755448346875,24.41508814,194.09,194.08,0.03]
[1755448347045,9.30887257,194.09,194.08,11.25278027]
[1755448347676,9.30887257,194.09,194.08,6.10026585]
[1755448347968,9.30887257,194.09,194.08,0.03]
[1755448348181,10.00887257,194.09,194.08,0.03]
[1755448349165,9.30887257,194.09,194.08,0.03]
[1755448349333,9.30887257,194.09,194.08,6.10026585]
[1755448349534,9.30887257,194.09,194.08,11.25278027]
[1755448349939,9.30887257,194.09,194.08,6.10026585]
[1755448350188,9.30887257,194.1,194.08,6.78026585]
[1755448350353,9.30887257,194.09,194.08,0.03]
[1755448351573,9.30887257,194.09,194.08,6.10026585]
[1755448352098,9.30887257,194.1,194.08,11.93278027]
[1755448352255,9.30887257,194.1,194.09,6.75026585]
[1755448352461,9.30887257,194.13,194.09,6.75026585]
[1755448352661,9.30887257,194.13,194.12,6.07026585]
[1755448352997,0.06,194.16,194.12,6.75026585]
[1755448352998,9.36887257,194.16,194.12,6.75026585]
[1755448353153,0.06,194.16,194.15,6.07026585]
[1755448353480,0.06,194.16,194.15,6.75026585]
[1755448353644,9.36887257,194.16,194.15,6.75026585]
[1755448353843,9.36887257,194.16,194.11,38.1]
[1755448354039,9.30887257,194.14,194.13,6.07026585]